bitfinex-derivatives/quotes_BTCF0:USTF0_20240820
["timestamp","ask_amount","ask_price","bid_price","bid_amount"]
[1724161372384,3.77000001,60796.0,60795.0,0.011]
[1724161372587,0.3608,60811.0,60795.0,0.3718]
[1724161372902,0.3608,60811.0,60805.0,0.065763]
[1724161373080,3.77,60810.0,60805.0,0.065763]
[1724161373280,3.77,60810.0,60800.0,0.3608]
[1724161374286,0.141,60824.0,60816.0,0.065751]
[1724161374784,0.3608,60819.0,60810.0,0.3608]
[1724161375179,0.3608,60811.0,60804.0,0.065764]
[1724161375394,0.3608,60819.0,60797.0,0.2302]
[1724161375395,0.3608,60819.0,60814.0,0.00024668]
[1724161375788,0.3608,60819.0,60801.0,0.3608]
[1724161375789,0.4,60816.0,60806.0,0.065762]
[1724161375993,0.3608,60819.0,60800.0,0.065768]
[1724161375994,0.3608,60807.0,60800.0,0.065768]
[1724161376190,0.3608,60801.0,60800.0,0.065768]
[1724161376993,0.426561,60807.0,60789.0,0.3608]
[1724161376994,0.3608,60807.0,60794.0,0.36104668]
[1724161377182,0.3608,60807.0,60798.0,0.06577]
[1724161377183,0.065763,60805.0,60798.0,0.06577]
[1724161377382,3.77,60804.0,60801.0,0.065768]
[1724161377582,0.3608,60802.0,60799.0,0.06577]
[1724161377783,0.3608,60802.0,60801.0,0.065768]
[1724161378180,3.77096001,60804.0,60803.0,0.065766]
[1724161378386,0.00024668,60807.0,60806.0,0.065762]
[1724161379689,0.00124668,60807.0,60806.0,0.065762]
[1724161380692,0.049,60824.0,60806.0,0.49336]
[1724161380888,0.049,60824.0,60817.0,0.06575]
[1724161380889,0.3608,60822.0,60817.0,0.06575]
[1724161381082,0.3608,60822.0,60812.0,0.3608]
[1724161381083,3.77,60821.0,60812.0,0.426555]
[1724161381283,0.3608,60816.0,60807.0,0.065761]
[1724161381584,0.3608,60810.0,60800.0,0.3608]
[1724161381786,0.426559,60810.0,60803.0,0.065765]
[1724161381995,0.06576,60809.0,60805.0,0.00024668]
[1724161382684,0.06576,60809.0,60793.0,0.3608]
[1724161382685,0.065762,60806.0,60793.0,0.3608]
[1724161382887,0.00024668,60818.0,60790.0,0.065779]
[1724161382888,0.065774,60795.0,60790.0,0.065779]
[1724161383085,0.3608,60794.0,60790.0,0.065779]
[1724161383487,0.3608,60805.0,60793.0,0.3608]
[1724161383679,0.3608,60807.0,60806.0,0.065762]
[1724161384688,0.3608,60807.0,60803.0,0.065765]
[1724161384894,0.3608,60807.0,60798.0,0.3608]
[1724161385280,0.3608,60807.0,60793.0,0.36104668]
[1724161385281,0.3608,60801.0,60795.0,0.065774]
[1724161385490,0.3608,60796.0,60795.0,0.065774]
[1724161386284,0.3608,60807.0,60799.0,0.06577]
[1724161386489,0.3608,60800.0,60798.0,0.065771]
[1724161386882,0.3608,60800.0,60795.0,0.009]
[1724161387284,0.3608,60800.0,60795.0,0.074775]
[1724161388290,0.3608,60800.0,60798.0,0.005]
[1724161389396,0.065771,60799.0,60794.0,0.065776]
[1724161389696,0.065771,60799.0,60795.0,0.009]
[1724161389992,0.3608,60800.0,60795.0,0.009]
[1724161390196,0.3608,60800.0,60777.0,0.08205353]
[1724161390197,0.065782,60789.0,60779.0,0.04923541]
[1724161390394,0.065782,60789.0,60783.0,0.065788]
[1724161390395,0.3608,60784.0,60783.0,0.065788]
[1724161391096,4.1308,60784.0,60783.0,0.065788]
[1724161391690,4.1308,60784.0,60777.0,0.00024668]
[1724161391991,3.77,60784.0,60783.0,0.014]
[1724161392198,4.1308,60784.0,60783.0,0.014]
[1724161392396,0.3608,60789.0,60783.0,0.014]
[1724161392588,0.00024668,60790.0,60789.0,0.065782]
[1724161393397,0.065782,60789.0,60786.0,0.065785]
[1724161393895,3.77,60788.0,60787.0,0.426584]
[1724161394197,3.77,60788.0,60787.0,0.065784]
[1724161395389,3.771,60788.0,60787.0,0.014]
[1724161395690,4.1318,60788.0,60787.0,0.014]
[1724161395889,4.1318,60788.0,60778.0,0.04923541]
[1724161395890,5.02532,60788.0,60778.0,0.04923541]
[1724161396197,5.02532,60788.0,60770.0,0.31229353]
[1724161396198,0.40960694,60780.0,60768.0,0.04923541]
[1724161396402,0.40960694,60780.0,60759.0,0.08221948]
[1724161396403,0.3608,60769.0,60765.0,0.065808]
[1724161396900,0.065805,60768.0,60765.0,0.065808]
[1724161397295,0.065805,60768.0,60761.0,0.065812]
[1724161397603,0.3608,60769.0,60762.0,0.065811]
[1724161397604,0.3608,60763.0,60762.0,0.065811]
[1724161397991,0.3608,60763.0,60760.0,0.00024668]
[1724161397992,0.426611,60763.0,60760.0,0.04948209]
[1724161398300,0.065816,60758.0,60749.0,0.04923541]
[1724161398606,0.3608,60755.0,60747.0,0.04923541]
[1724161398808,0.3608,60755.0,60751.0,0.065823]
[1724161399000,0.3608,60755.0,60746.0,0.04923541]
[1724161399194,0.3608,60755.0,60730.0,0.14686423]
[1724161399195,0.3608,60749.0,60745.0,0.00024689]
[1724161399398,0.065828,60747.0,60745.0,0.00024689]
[1724161400102,0.49384,60746.0,60733.0,0.04923541]
[1724161400304,0.3608,60738.0,60730.0,0.3608]
[1724161400504,0.3608,60743.0,60742.0,0.065833]
[1724161400899,0.3608,60753.0,60742.0,0.065833]
[1724161401101,0.0476,60754.0,60735.0,0.3608]
[1724161401102,0.3608,60748.0,60735.0,0.3608]
[1724161401412,0.3608,60743.0,60735.0,0.42664]
[1724161401706,0.3618,60743.0,60742.0,0.005]
[1724161403094,0.001,60743.0,60742.0,0.005]
[1724161403610,3.771,60743.0,60742.0,0.005]
[1724161403794,0.001,60743.0,60742.0,0.005]
[1724161404197,3.771,60743.0,60742.0,0.005]
[1724161404406,3.77,60743.0,60741.0,0.06599885]
[1724161404709,3.77,60743.0,60741.0,0.00016485]
[1724161405102,0.001,60743.0,60742.0,0.005]
[1724161405500,0.3608,60744.0,60741.0,0.00016485]
[1724161405706,0.001,60743.0,60741.0,0.00416485]
[1724161406102,4.13172,60744.0,60741.0,0.00016485]
[1724161406300,4.1308,60744.0,60742.0,0.004]
[1724161407103,4.196631,60744.0,60742.0,0.004]
[1724161407407,0.065832,60743.0,60742.0,0.004]
[1724161407711,0.065833,60742.0,60741.0,0.00016485]
[1724161407913,0.065833,60742.0,60741.0,0.00516485]
[1724161408209,0.065839,60738.0,60730.0,0.065846]
[1724161408507,0.065839,60738.0,60722.0,0.3608]
[1724161408508,0.3608,60732.0,60725.0,0.065851]
[1724161408698,0.3608,60729.0,60711.0,0.04923541]
[1724161408904,0.3608,60729.0,60726.0,0.06585]
[1724161409104,0.3608,60729.0,60717.0,0.3608]
[1724161409304,0.3608,60729.0,60726.0,0.06585]
[1724161409707,0.3608,60729.0,60717.0,0.3608]
[1724161410418,0.065849,60727.0,60718.0,0.065859]
[1724161410715,0.065849,60727.0,60720.0,0.065857]
[1724161410906,0.3608,60729.0,60723.0,0.3608]
[1724161411108,0.001,60732.0,60723.0,0.3608]
[1724161411109,0.001,60732.0,60728.0,0.3608]
[1724161411301,0.00024689,60734.0,60723.0,0.3608]
[1724161411507,0.001,60729.0,60722.0,0.3608]
[1724161411711,0.066847,60729.0,60722.0,0.3608]
[1724161412214,0.065847,60729.0,60722.0,0.3608]
[1724161412515,0.065847,60729.0,60722.0,0.426655]
[1724161413102,0.00024689,60734.0,60727.0,0.3608]
[1724161413405,0.00024689,60734.0,60733.0,0.065843]
[1724161414644,3.77,60742.0,60733.0,1.099803]
[1724161414819,0.065822,60753.0,60745.0,0.06583]
[1724161414820,0.3608,60752.0,60745.0,0.06583]
[1724161415111,0.065822,60753.0,60745.0,0.06583]
[1724161415314,3.77,60751.0,60745.0,0.06583]
[1724161416404,3.77,60751.0,60746.0,0.065828]
[1724161416615,3.77,60751.0,60742.0,0.00024689]
[1724161416616,3.77,60751.0,60748.0,0.065826]
[1724161416919,3.77,60751.0,60743.0,0.065831]
[1724161417215,0.065826,60749.0,60743.0,0.065831]
[1724161417911,3.77088,60751.0,60742.0,0.00024689]
[1724161418212,0.065835,60740.0,60733.0,0.065842]
[1724161418416,0.065835,60740.0,60734.0,0.065841]
[1724161418712,0.065835,60740.0,60735.0,0.06584]
[1724161419107,0.065835,60740.0,60736.0,0.065839]
[1724161419504,0.065841,60735.0,60731.0,0.3608]
[1724161419717,0.065841,60735.0,60721.0,0.00012083]
[1724161419718,0.3608,60735.0,60728.0,0.065847]
[1724161419920,0.3608,60729.0,60728.0,0.065847]
[1724161420414,0.06585,60727.0,60721.0,0.00012083]
[1724161420613,0.3608,60723.0,60721.0,0.00012083]
[1724161421010,3.77,60722.0,60721.0,0.00012083]
[1724161422313,0.001,60727.0,60721.0,0.00012083]
[1724161422517,0.001,60727.0,60726.0,0.06585]
[1724161422711,0.00024689,60728.0,60727.0,0.065849]
[1724161422906,0.36104689,60728.0,60721.0,0.00012083]
[1724161423319,0.065849,60727.0,60721.0,0.00012083]
[1724161423620,0.36104689,60728.0,60721.0,0.00012083]
[1724161423920,0.36104689,60728.0,60723.0,0.065853]
[1724161424118,0.065851,60726.0,60721.0,0.00012083]
[1724161424617,0.36204689,60728.0,60721.0,0.00012083]
[1724161424618,0.3608,60722.0,60721.0,0.00012083]
[1724161425021,1.25484,60722.0,60721.0,0.00012083]
[1724161425524,5.02484,60722.0,60721.0,0.00012083]
[1724161425724,5.09081583,60722.0,60717.0,0.065861]
[1724161426022,4.19677583,60722.0,60717.0,0.065861]
[1724161426223,0.49408,60721.0,60707.0,0.04923541]
[1724161426435,0.3608,60710.0,60704.0,0.04923541]
[1724161426720,0.3608,60710.0,60707.0,0.065871]
[1724161427512,0.426669,60710.0,60703.0,0.065876]
[1724161427719,0.3608,60704.0,60703.0,0.065876]
[1724161427912,0.36092083,60704.0,60703.0,0.065876]
[1724161428317,0.36092083,60704.0,60697.0,0.04923541]
[1724161428518,0.3608,60699.0,60698.0,0.065882]
[1724161429118,0.00012083,60704.0,60703.0,0.065876]
[1724161429518,0.00112083,60704.0,60703.0,0.065876]
[1724161429718,0.3608,60717.0,60704.0,0.065875]
[1724161429919,0.3608,60717.0,60714.0,0.065865]
[1724161430316,0.3608,60717.0,60710.0,0.065868]
[1724161430628,0.3608,60712.0,60710.0,0.065868]
[1724161430818,0.3608,60712.0,60702.0,0.04907951]
[1724161431015,0.3608,60717.0,60701.0,0.37346875]
[1724161431016,0.3608,60717.0,60714.0,0.065865]
[1724161431525,0.3608,60717.0,60711.0,0.04907951]
[1724161431823,0.065868,60711.0,60710.0,0.001]
[1724161432017,0.4953671,60715.0,60711.0,0.065868]
[1724161432215,0.49412,60714.0,60711.0,0.065868]
[1724161432617,0.3608,60712.0,60705.0,0.04907951]
[1724161432820,0.3608,60712.0,60704.0,0.04907951]
[1724161433017,0.3608,60712.0,60705.0,0.04907951]
[1724161433213,0.426667,60712.0,60704.0,0.04907951]
[1724161433420,0.065868,60711.0,60706.0,0.065872]
[1724161433627,0.3608,60712.0,60704.0,0.01495151]
[1724161433811,0.3608,60712.0,60703.0,0.3608]
[1724161433812,0.3608,60712.0,60706.0,0.065872]
[1724161434017,0.3608,60712.0,60703.0,0.37575151]
[1724161434018,0.3608,60712.0,60707.0,0.065872]
[1724161434217,0.3608,60712.0,60709.0,0.06587]
[1724161434616,0.3618,60712.0,60709.0,0.06587]
[1724161435019,0.3608,60712.0,60709.0,0.06587]
[1724161435222,0.3618,60712.0,60709.0,0.06587]
[1724161435624,0.3608,60712.0,60709.0,0.06587]
[1724161435822,0.3618,60712.0,60709.0,0.002]
[1724161436128,0.065869,60710.0,60709.0,0.002]
[1724161437628,0.065869,60710.0,60693.0,0.065887]
[1724161437629,1.24996,60710.0,60693.0,0.065887]
[1724161437830,0.3608,60697.0,60693.0,0.065887]
[1724161438017,3.77,60696.0,60693.0,0.065887]
[1724161439325,0.06589,60691.0,60689.0,0.01302448]
[1724161439520,0.3608,60692.0,60688.0,0.23056]
[1724161439726,0.3608,60689.0,60672.0,0.0656358]
[1724161440026,0.3608,60689.0,60682.0,0.3608]
[1724161440225,0.3608,60683.0,60675.0,0.4264358]
[1724161440430,0.3608,60683.0,60677.0,0.065904]
[1724161440929,0.0002471,60688.0,60680.0,0.3608]
[1724161441132,0.0002471,60688.0,60687.0,0.065894]
[1724161443729,0.3608,60704.0,60688.0,0.065892]
[1724161443931,0.3608,60704.0,60703.0,0.065876]
[1724161444133,0.3608,60704.0,60694.0,0.3608]
[1724161444328,0.3608,60704.0,60701.0,0.065878]
[1724161444532,0.3608,60703.0,60686.0,0.4264358]
[1724161444837,0.3608,60690.0,60688.0,0.0002471]
[1724161445041,0.3608,60689.0,60688.0,0.0002471]
[1724161445438,0.85512,60689.0,60688.0,0.0002471]
[1724161445636,0.85512,60689.0,60681.0,0.00011682]
[1724161445637,0.065897,60685.0,60681.0,0.00011682]
[1724161445845,0.065899,60683.0,60681.0,0.00011682]
[1724161446738,0.3608,60687.0,60681.0,0.00011682]
[1724161446739,0.426699,60682.0,60681.0,0.00011682]
[1724161446931,0.065907,60675.0,60664.0,0.0656358]
[1724161447128,0.3608,60672.0,60663.0,0.3261]
[1724161447333,3.77,60671.0,60663.0,0.3261]
[1724161447727,3.77,60671.0,60670.0,0.065912]
[1724161449135,3.77,60671.0,60663.0,0.3261]
[1724161449445,0.3608,60667.0,60662.0,0.065921]
[1724161449832,0.3608,60667.0,60657.0,0.605826]
[1724161450143,0.426716,60667.0,60658.0,0.065925]
[1724161450440,0.065919,60664.0,60658.0,0.065925]
[1724161450640,0.00011682,60663.0,60658.0,0.065925]
[1724161450830,0.00011682,60663.0,60657.0,0.54178]
[1724161451142,0.3608,60658.0,60657.0,0.5399]
[1724161451439,0.3608,60658.0,60656.0,0.065926]
[1724161451640,0.00011682,60663.0,60662.0,0.065921]
[1724161451843,0.00111682,60663.0,60662.0,0.065921]
[1724161453042,0.00111682,60663.0,60658.0,0.065925]
[1724161453443,0.00011682,60663.0,60657.0,0.3608]
[1724161453737,0.001,60658.0,60657.0,0.426726]
[1724161454241,0.00111682,60663.0,60662.0,0.065921]
[1724161455041,0.00111682,60663.0,60662.0,0.426721]
[1724161455235,0.3608,60678.0,60677.0,0.065905]
[1724161455442,3.77,60688.0,60680.0,0.065901]
[1724161455837,0.065896,60685.0,60680.0,0.065901]
[1724161456032,0.3608,60684.0,60676.0,0.065905]
[1724161456241,0.3608,60684.0,60672.0,0.3608]
[1724161456242,0.0002473,60686.0,60682.0,0.3608]
[1724161456542,0.0002473,60686.0,60685.0,0.065895]
[1724161457937,0.0012473,60686.0,60685.0,0.427695]
[1724161458136,0.3608,60709.0,60685.0,1.50297869]
[1724161458336,0.3608,60709.0,60695.0,0.3608]
[1724161458533,0.3608,60702.0,60695.0,0.3608]
[1724161458743,4.1308,60702.0,60695.0,0.3608]
[1724161459045,0.3608,60709.0,60701.0,0.3608]
[1724161459242,0.0002473,60705.0,60703.0,0.065876]
[1724161459447,0.0002473,60705.0,60700.0,0.3608]
[1724161459638,0.0002473,60705.0,60700.0,0.37356738]
[1724161460038,0.0002473,60705.0,60704.0,0.065875]
[1724161460240,0.0002473,60705.0,60704.0,0.465875]
[1724161460436,0.0002473,60705.0,60704.0,0.560075]
[1724161460638,0.0012473,60705.0,60704.0,0.560075]
[1724161460839,0.0012473,60705.0,60704.0,0.960075]
[1724161461039,0.0012473,60705.0,60704.0,0.065875]
[1724161461241,0.0002473,60705.0,60704.0,0.065875]
[1724161461437,0.0012473,60705.0,60704.0,0.067875]
[1724161462844,0.0012473,60705.0,60704.0,0.065875]
[1724161463044,0.0012473,60705.0,60704.0,0.428675]
[1724161464154,0.065856,60722.0,60704.0,0.428675]
[1724161464155,0.3608,60727.0,60706.0,0.065873]
[1724161464357,0.06539486,60738.0,60706.0,0.065873]
[1724161464358,0.048,60744.0,60726.0,0.3608]
[1724161464546,0.065841,60736.0,60719.0,0.7164]
[1724161464755,0.3608,60737.0,60725.0,0.065852]
[1724161465057,0.065846,60731.0,60725.0,0.065852]
[1724161465252,0.065844,60733.0,60727.0,0.06585]
[1724161465862,0.3608,60729.0,60725.0,0.0002471]
[1724161466264,0.3608,60736.0,60725.0,0.0002471]
[1724161466563,0.3608,60736.0,60728.0,0.065849]
[1724161466564,0.065842,60735.0,60728.0,0.065849]
[1724161466969,0.01,60729.0,60725.0,0.0002471]
[1724161467187,0.0002471,60737.0,60725.0,0.0002471]
[1724161467188,0.0002471,60737.0,60736.0,0.06584]
[1724161467667,0.01,60736.0,60725.0,0.0002471]
[1724161467867,0.3608,60726.0,60725.0,0.0002471]
[1724161468276,0.065846,60731.0,60725.0,0.0002471]
[1724161468469,0.3608,60726.0,60725.0,0.0002471]
[1724161469066,3.77,60726.0,60725.0,0.0660991]
[1724161469376,3.77,60726.0,60725.0,0.0670991]
[1724161469877,3.77,60726.0,60725.0,0.0660991]
[1724161470081,3.772,60726.0,60725.0,0.0660991]
[1724161470574,3.772,60726.0,60725.0,0.9601391]
[1724161470770,0.0002471,60737.0,60736.0,0.06584]
[1724161471472,0.0002471,60737.0,60736.0,0.42664]
[1724161472174,0.426615,60760.0,60746.0,0.065829]
[1724161472175,0.065821,60754.0,60746.0,0.065829]
[1724161472378,0.065821,60754.0,60736.0,1.61032]
[1724161472379,0.3608,60753.0,60749.0,0.065826]
[1724161472676,0.3608,60753.0,60741.0,0.3608]
[1724161472974,0.3608,60760.0,60741.0,0.3608]
[1724161472975,0.3608,60760.0,60748.0,0.3608]
[1724161473165,0.065813,60762.0,60753.0,0.3608]
[1724161473367,0.4086,60765.0,60757.0,0.065817]
[1724161473571,0.4086,60765.0,60753.0,0.3608]
[1724161473767,0.00024688,60764.0,60753.0,0.36104688]
[1724161473982,0.00024688,60764.0,60758.0,0.065816]
[1724161474179,0.00024688,60764.0,60763.0,0.065811]
[1724161474478,0.00024688,60764.0,60763.0,0.421411]
[1724161475274,0.00024688,60764.0,60760.0,0.0018]
[1724161475474,0.3608,60763.0,60754.0,0.3608]
[1724161475984,0.3608,60763.0,60758.0,0.065816]
[1724161476373,0.3608,60763.0,60759.0,0.065815]
[1724161476979,0.3618,60763.0,60759.0,0.065815]
[1724161477185,0.3618,60763.0,60754.0,0.3678]
[1724161477186,0.001,60763.0,60754.0,0.433621]
[1724161477385,0.001,60763.0,60754.0,0.3678]
[1724161477582,0.36104688,60764.0,60759.0,0.002]
[1724161478182,0.42685688,60764.0,60759.0,0.002]
[1724161478484,0.065811,60763.0,60759.0,0.002]
[1724161479182,0.065811,60763.0,60757.0,0.065817]
[1724161479183,0.066811,60763.0,60757.0,0.065817]
[1724161479382,3.77,60762.0,60757.0,0.065817]
[1724161479576,3.77,60762.0,60754.0,0.3688]
[1724161479878,0.3608,60757.0,60754.0,0.008]
[1724161480091,0.06582,60755.0,60753.0,0.00024688]
[1724161480278,0.4938,60756.0,60741.0,0.3608]
[1724161480483,0.3608,60750.0,60742.0,0.065833]
[1724161480788,0.3608,60750.0,60741.0,0.3608]
[1724161480983,0.426626,60750.0,60741.0,0.3608]
[1724161481178,0.3608,60750.0,60741.0,0.3608]
[1724161481383,0.00024688,60752.0,60747.0,0.3608]
[1724161481580,0.00024688,60752.0,60751.0,0.065824]
[1724161482783,0.00024688,60752.0,60747.0,0.3608]
[1724161482984,0.3608,60749.0,60747.0,0.065828]
[1724161483380,0.36104688,60752.0,60747.0,0.065828]
[1724161483579,0.36204688,60752.0,60751.0,0.011]
[1724161484088,0.001,60749.0,60747.0,0.079828]
[1724161484287,0.001,60749.0,60747.0,0.014]
[1724161484682,0.42686988,60752.0,60751.0,0.005]
[1724161484888,4.19686988,60752.0,60751.0,0.005]
[1724161485684,3.77024688,60752.0,60751.0,0.005]
[1724161485887,3.77024688,60752.0,60751.0,0.070824]
[1724161486788,3.77024688,60752.0,60751.0,0.431624]
[1724161486986,0.00024688,60752.0,60751.0,0.431624]
[1724161487294,0.3608,60764.0,60762.0,0.065812]
[1724161487677,0.3608,60770.0,60756.0,0.3608]
[1724161487879,3.77,60769.0,60756.0,0.5208]
[1724161488079,3.77,60769.0,60768.0,0.065806]
[1724161489084,3.77,60769.0,60764.0,0.06581]
[1724161489390,0.3608,60770.0,60762.0,0.00024688]
[1724161489589,0.00024688,60775.0,60765.0,0.3608]
[1724161490285,0.00024688,60775.0,60770.0,0.065803]
[1724161490491,0.00024688,60775.0,60765.0,0.3608]
[1724161491193,0.00024688,60775.0,60774.0,0.065799]
[1724161491379,0.00524688,60775.0,60774.0,0.065799]
[1724161492488,0.01224688,60775.0,60774.0,0.066799]
[1724161494690,0.00524688,60775.0,60774.0,0.065799]
[1724161494995,0.00524688,60775.0,60774.0,0.959439]
[1724161495191,0.3608,60799.0,60774.0,1.03364]
[1724161495393,0.3608,60799.0,60787.0,0.3608]
[1724161495696,0.426578,60794.0,60789.0,0.065782]
[1724161496096,0.426578,60794.0,60784.0,0.3608]
[1724161496097,0.426578,60794.0,60790.0,0.065782]
[1724161496294,3.83685988,60798.0,60785.0,0.00024688]
[1724161496498,3.83685988,60798.0,60792.0,0.065779]
[1724161496499,3.83601988,60798.0,60792.0,0.065779]
[1724161496689,3.83601988,60798.0,60794.0,0.065777]
[1724161497094,0.065778,60794.0,60790.0,0.065781]
[1724161497285,0.3608,60791.0,60790.0,0.065781]
[1724161498593,4.13188688,60798.0,60797.0,0.065774]
[1724161498893,4.13104688,60798.0,60797.0,0.065774]
[1724161500699,4.13704688,60798.0,60797.0,0.066774]
[1724161500994,3.77624688,60798.0,60797.0,0.427574]
[1724161501390,0.00624688,60798.0,60797.0,0.427574]
[1724161501784,4.20281988,60798.0,60797.0,0.001]
[1724161502498,5.09625988,60798.0,60782.0,0.3608]
[1724161502698,0.3608,60788.0,60787.0,0.065785]
[1724161502999,4.13788688,60798.0,60797.0,0.065774]
[1724161503187,4.13704688,60798.0,60797.0,0.065774]
[1724161503385,3.77624688,60798.0,60797.0,0.426574]
[1724161503998,3.77024688,60798.0,60797.0,0.426574]
[1724161504198,0.04880694,60816.0,60797.0,0.426574]
[1724161504199,0.065757,60813.0,60812.0,0.065757]
[1724161504492,0.065757,60813.0,60797.0,1.142974]
[1724161504493,0.3608,60820.0,60802.0,0.3608]
[1724161504696,0.3608,60807.0,60800.0,0.06577]
[1724161504895,0.065768,60803.0,60800.0,0.065771]
[1724161505096,0.3608,60807.0,60797.0,0.001]
[1724161505294,0.00016239,60806.0,60794.0,0.00024666]
[1724161505498,0.3608,60802.0,60794.0,0.00024666]
[1724161505696,0.00016239,60806.0,60794.0,0.00024666]
[1724161505999,0.00016239,60806.0,60804.0,0.065766]
[1724161506388,0.00016239,60806.0,60805.0,0.065765]
[1724161507792,0.00516239,60806.0,60805.0,0.001]
[1724161508194,0.07092639,60806.0,60805.0,0.001]
[1724161508591,0.065765,60805.0,60794.0,0.00024666]
[1724161508793,0.3608,60797.0,60794.0,0.00024666]
[1724161508998,0.3608,60797.0,60791.0,0.3608]
[1724161508999,0.065778,60793.0,60778.0,0.00019598]
[1724161509194,0.3608,60788.0,60778.0,0.00019598]
[1724161509393,0.3608,60788.0,60781.0,0.06579]
[1724161509987,0.3608,60788.0,60778.0,0.00019598]
[1724161509988,0.065787,60785.0,60778.0,0.01326041]
[1724161510188,0.3608,60783.0,60778.0,0.00044264]
[1724161510396,0.3608,60783.0,60779.0,0.065793]
[1724161510798,0.3608,60788.0,60780.0,0.065792]
[1724161511100,0.3608,60787.0,60782.0,0.06579]
[1724161511296,0.3608,60787.0,60778.0,0.00044264]
[1724161511297,0.066788,60785.0,60778.0,0.01344264]
[1724161511496,0.3608,60782.0,60779.0,0.065793]
[1724161511888,0.3608,60782.0,60779.0,0.076793]
[1724161512288,0.3608,60782.0,60781.0,0.065791]
[1724161512594,0.001,60783.0,60782.0,0.06579]
[1724161512794,0.00024666,60791.0,60790.0,0.065782]
[1724161513999,0.00024666,60791.0,60790.0,0.959262]
[1724161514205,0.065765,60805.0,60798.0,0.065772]
[1724161514509,3.835767,60804.0,60798.0,0.065772]
[1724161514801,0.04880694,60816.0,60797.0,0.3608]
[1724161514802,0.3608,60821.0,60803.0,0.3608]
[1724161515008,0.065751,60819.0,60810.0,0.06576]
[1724161515194,0.3608,60821.0,60808.0,0.71852]
[1724161515195,0.00016239,60818.0,60808.0,0.71852]
[1724161515396,0.00016239,60818.0,60814.0,0.065755]
[1724161515695,0.00016239,60818.0,60815.0,0.065753]
[1724161515906,0.00016239,60818.0,60808.0,0.3556]
[1724161515907,0.00016239,60818.0,60808.0,0.7164]
[1724161516300,0.00016239,60818.0,60808.0,0.6164]
[1724161516502,0.00016239,60818.0,60811.0,0.065759]
[1724161517498,0.00016239,60818.0,60813.0,0.3608]
[1724161517794,0.3608,60814.0,60806.0,0.00024666]
[1724161518102,0.065758,60812.0,60811.0,0.001]
[1724161518305,0.065752,60817.0,60811.0,0.3618]
[1724161518904,0.065752,60817.0,60811.0,0.426559]
[1724161519499,0.00016239,60818.0,60811.0,0.3608]
[1724161519701,0.00016239,60818.0,60817.0,0.065752]
[1724161521299,0.00016239,60818.0,60817.0,0.066752]
[1724161521707,0.06576,60810.0,60801.0,0.06577]
[1724161521899,0.08167385,60806.0,60801.0,0.06577]
[1724161522101,0.08167385,60806.0,60800.0,0.3608]
[1724161522404,0.06533906,60801.0,60800.0,0.426571]
[1724161522602,3.77084,60805.0,60801.0,0.065769]
[1724161522798,3.85167385,60805.0,60801.0,0.065769]
[1724161522992,3.85167385,60805.0,60800.0,0.3608]
[1724161523193,0.065769,60802.0,60797.0,0.00024666]
[1724161523394,0.08167385,60800.0,60797.0,0.00024666]
[1724161523595,0.08167385,60799.0,60797.0,0.00024666]
[1724161523895,0.065771,60800.0,60780.0,0.3608]
[1724161523896,0.38744651,60798.0,60780.0,0.3608]
[1724161524102,0.0654043,60784.0,60780.0,0.3608]
[1724161524294,0.3608,60788.0,60780.0,0.3608]
[1724161524295,0.08175537,60785.0,60780.0,0.3608]
[1724161524808,0.08175537,60781.0,60778.0,0.00019598]
[1724161525103,0.44255537,60782.0,60780.0,0.014]
[1724161525501,0.02665339,60781.0,60780.0,0.014]
[1724161527003,0.02665339,60781.0,60778.0,0.00019598]
[1724161527004,3.79665339,60781.0,60778.0,0.00019598]
[1724161527195,0.02665339,60780.0,60778.0,0.00019598]
[1724161527597,0.38745339,60780.0,60778.0,0.00019598]
[1724161527798,0.02665339,60779.0,60753.0,0.4071]
[1724161528001,0.04904643,60762.0,60761.0,0.065813]
[1724161528303,0.04904583,60764.0,60763.0,0.065811]
[1724161528698,0.06539338,60769.0,60763.0,0.065811]
[1724161528699,0.3608,60780.0,60769.0,0.065804]
[1724161528905,0.3608,60780.0,60763.0,0.89372]
[1724161528906,0.06595353,60779.0,60770.0,0.065803]
[1724161529204,0.06595353,60779.0,60767.0,0.3608]
[1724161529205,0.06595353,60779.0,60771.0,0.065802]
[1724161529407,0.00015953,60779.0,60768.0,0.00024687]
[1724161529606,0.00015953,60779.0,60778.0,0.065794]
[1724161530611,0.00015953,60779.0,60768.0,0.00024687]
[1724161530612,0.00015953,60779.0,60773.0,0.0658]
[1724161530920,0.0658,60773.0,60768.0,0.00024687]
[1724161531100,0.3608,60775.0,60768.0,0.00024687]
[1724161531408,0.3608,60775.0,60769.0,0.065804]
[1724161531606,0.3608,60775.0,60770.0,0.065803]
[1724161531811,0.00015953,60779.0,60773.0,0.0658]
[1724161532009,0.00015953,60779.0,60768.0,0.00024687]
[1724161532010,0.065795,60778.0,60769.0,0.065803]
[1724161532307,0.00015953,60779.0,60769.0,0.065803]
[1724161532507,0.3608,60777.0,60769.0,0.065803]
[1724161532813,0.3608,60777.0,60768.0,0.01024687]
[1724161532814,0.00015953,60779.0,60773.0,0.065799]
[1724161533009,0.06595353,60779.0,60773.0,0.065799]
[1724161534009,0.3608,60778.0,60773.0,0.065799]
[1724161534209,0.06595353,60779.0,60773.0,0.065799]
[1724161534210,0.42675353,60779.0,60773.0,0.065799]
[1724161534512,0.36095953,60779.0,60770.0,0.01]
[1724161534901,0.065804,60770.0,60768.0,0.00024687]
[1724161535108,0.3608,60771.0,60768.0,0.00024687]
[1724161535512,3.77,60769.0,60768.0,0.06605187]
[1724161535909,3.77,60769.0,60768.0,0.00024687]
[1724161536609,3.77,60769.0,60762.0,0.3608]